Workbook

Sheet 0007
AJ2: 事業番号 | AR2: =IF(OR(AO2=" ", AO2=""), "", "-") ->  | AS2: 7 | AV2: =IF(AW2="", "", "-") -> 
A3: 平成３１年度行政事業レビューシート | AI3: （ | AJ3: 人事院 | AX3: ）
A4: 事業名 | G4: 国家公務員の職務に係る倫理の保持 | Y4: 担当部局庁 | AE4: 国家公務員倫理審査会事務局 | AQ4: 作成責任者
A5: 事業開始年度 | G5: 平成１２年度 | M5: 事業終了 （予定）年度 | S5: 終了予定なし | Y5: 担当課室 | AE5: 国家公務員倫理審査会事務局 | AQ5: 首席参事官 岸本 康雄
A6: 会計区分 | G6: 一般会計
A7: 根拠法令 （具体的な 条項も記載） | G7: 国家公務員法第3条の2、国家公務員倫理法第11条 | Y7: 関係する 計画、通知等 | AE7: -
A8: 主要政策・施策 | G8: - | Y8: 主要経費 | AE8: その他の事項経費
A9: 事業の目的 （目指す姿を簡潔に。3行程度以内） | G9: 職員の職務執行の公正さに対する国民の疑惑や不信感を招くような行為の防止を図り、公務に対する国民の信頼を確保する。
A10: 事業概要 （5行程度以内。別添可） | G10: 倫理法、倫理規程の適正な運用を確保し、国家公務員の倫理を保持するため、国家公務員倫理法に基づき、国家公務員倫理審査会が設けられた。 国家公務員倫理審査会では、①倫理制度の周知、徹底、広報活動、②倫理の保持のための研修の企画調整、実施、③倫理制度に関する意見聴取、④倫理法に基づく職員からの各種報告書の審査、⑤倫理法等違反の疑いがある場合の調査・懲戒の手続の実施、懲戒処分の承認などを実施している。
A11: 実施方法 | G11: 直接実施
A12: 予算額・ 執行額 （単位:百万円） | P12: 28年度 | W12: 29年度 | AD12: 30年度 | AK12: 31年度 | AR12: 32年度要求
G13: 予算の状況 | I13: 当初予算 | P13: 12 | W13: 12 | AD13: 10 | AK13: 11 | AR13: 11
I14: 補正予算 | P14: 0 | W14: 0 | AD14: 0
I15: 前年度から繰越し | P15: 0 | W15: 0 | AD15: 0 | AK15: 0
I16: 翌年度へ繰越し | P16: 0 | W16: 0 | AD16: 0
I17: 予備費等 | P17: 0 | W17: 0 | AD17: 0
I18: 計 | P18: =SUM(P13:V17) -> 12 | W18: =SUM(W13:AC17) -> 12 | AD18: =SUM(AD13:AJ17) -> 10 | AK18: =SUM(AK13:AQ17) -> 11 | AR18: =SUM(AR13:AX17) -> 11
G19: 執行額 | P19: 9 | W19: 10 | AD19: 9
G20: 執行率（％） | P20: =IF(P18=0, "-", SUM(P19)/P18) -> 0.75 | W20: =IF(W18=0, "-", SUM(W19)/W18) -> 0.8333333333 | AD20: =IF(AD18=0, "-", SUM(AD19)/AD18) -> 0.9
G21: 当初予算＋補正予算に対する執行額の割合（％） | P21: =IF(P19=0, "-", SUM(P19)/SUM(P13,P14)) -> 0.75 | W21: =IF(W19=0, "-", SUM(W19)/SUM(W13,W14)) -> 0.8333333333 | AD21: =IF(AD19=0, "-", SUM(AD19)/SUM(AD13,AD14)) -> 0.9
A22: 平成31・32年度 予算内訳 （単位：百万円） | G22: 歳出予算目 | P22: 31年度当初予算 | W22: 32年度要求 | AD22: 主な増減理由
G23: 庁費 | P23: 7.4 | W23: 7.5 | AD23: （庁費） 倫理研修教材の拡充等による増と倫理保持状況等に関する調査方法の見直し等による減
G24: 職員旅費 | P24: 2 | W24: 2
G25: 諸謝金 | P25: 0.9 | W25: 0.9
G26: 講師等旅費 | P26: 0.2 | W26: 0.2
G27: 証人等旅費 | P27: 0.04 | W27: 0.05
G29: 計 | P29: =AK13 -> 11 | W29: =AR13 -> 11
A30: 成果目標及び 成果実績 （アウトカム） | G30: 定量的な成果目標 | P30: 成果指標 | AB30: 単位 | AE30: 28年度 | AI30: 29年度 | AM30: 30年度 | AQ30: 中間目標 | AU30: 目標最終年度
AQ31: - | AS31: 年度 | AU31: - | AW31: 年度
G32: 国家公務員の倫理感について、肯定的な見方をする国民の割合が6割となるようにする。 | P32: 市民アンケートにおける調査結果（国家公務員の倫理感が高い、又は、全体として倫理感が高いが一部低い者もいると肯定的な見方をする者の割合） | Y32: 成果実績 | AB32: ％ | AE32: 54.4 | AI32: 49.3 | AM32: 50.7
Y33: 目標値 | AB33: ％ | AE33: 60 | AI33: 60 | AM33: 60
Y34: 達成度 | AB34: ％ | AE34: =AE32/AE33*100 -> 90.66666667 | AI34: =AI32/AI33*100 -> 82.16666667 | AM34: =AM32/AM33*100 -> 84.5 | AQ34: =IF(AQ32<>0,AQ32/AQ33*100,"") ->  | AU34: =IF(AU32<>0,AU32/AU33*100,"") -> 
G35: 定量的な成果目標 | P35: 成果指標 | AB35: 単位 | AE35: 28年度 | AI35: 29年度 | AM35: 30年度 | AQ35: 中間目標 | AU35: 目標最終年度
AQ36: - | AS36: 年度 | AU36: - | AW36: 年度
G37: 公務員倫理に関する研修等の受講について、前回の受講から3年以内に受講したとする職員の割合を95%（30年度までは90%）以上とする。 | P37: 職員アンケートにおける調査結果（研修の受講間隔が、1年未満、又は、1年以上3年未満の職員の割合） | Y37: 成果実績 | AB37: ％ | AE37: 88.5 | AI37: 92.8 | AM37: 92.5
Y38: 目標値 | AB38: ％ | AE38: 90 | AI38: 90 | AM38: 90
Y39: 達成度 | AB39: ％ | AE39: =AE37/AE38*100 -> 98.33333333 | AI39: =AI37/AI38*100 -> 103.1111111 | AM39: =AM37/AM38*100 -> 102.7777778 | AQ39: =IF(AQ37<>0,AQ37/AQ38*100,"") ->  | AU39: =IF(AU37<>0,AU37/AU38*100,"") -> 
A40: 根拠として用いた 統計・データ名 （出典） | G40: -
A42: 成果目標及び 成果実績 （アウトカム） | G42: 定量的な成果目標 | P42: 成果指標 | AB42: 単位 | AE42: 28年度 | AI42: 29年度 | AM42: 30年度 | AQ42: 中間目標 | AU42: 目標最終年度
AS43: 年度 | AW43: 年度
Y44: 成果実績
Y45: 目標値
Y46: 達成度 | AB46: ％
A47: 根拠として用いた 統計・データ名 （出典）
A49: 成果目標及び 成果実績 （アウトカム） | G49: 定量的な成果目標 | P49: 成果指標 | AB49: 単位 | AE49: 28年度 | AI49: 29年度 | AM49: 30年度 | AQ49: 中間目標 | AU49: 目標最終年度
AS50: 年度 | AW50: 年度
Y51: 成果実績
Y52: 目標値
Y53: 達成度 | AB53: ％
A54: 根拠として用いた 統計・データ名 （出典）
A56: 成果目標及び 成果実績 （アウトカム） | G56: 定量的な成果目標 | P56: 成果指標 | AB56: 単位 | AE56: 28年度 | AI56: 29年度 | AM56: 30年度 | AQ56: 中間目標 | AU56: 目標最終年度
AS57: 年度 | AW57: 年度
Y58: 成果実績
Y59: 目標値
Y60: 達成度 | AB60: ％
A61: 根拠として用いた 統計・データ名 （出典）
A63: 成果目標及び 成果実績 （アウトカム） | G63: 定量的な成果目標 | P63: 成果指標 | AB63: 単位 | AE63: 28年度 | AI63: 29年度 | AM63: 30年度 | AQ63: 中間目標 | AU63: 目標最終年度
AS64: 年度 | AW64: 年度
Y65: 成果実績
Y66: 目標値
Y67: 達成度 | AB67: ％
A68: 根拠として用いた 統計・データ名 （出典）
A70: 横断的な施策に係る成果目標 及び成果実績 （アウトカム） | H70: 定量的な成果目標 | P70: 成果指標 | W70: 分類 | AB70: 単位 | AE70: 28年度 | AI70: 29年度 | AM70: 30年度 | AQ70: 中間目標 | AU70: 目標最終年度
AS71: 年度 | AW71: 年度
G72: 目標・指標 | Y72: 成果実績 | AB72: 円/t-CO2
Y73: 目標値 | AB73: 円/t-CO2
Y74: 達成度 | AB74: ％
A75: 地球温暖化対策関係 | G75: 算出方法 | W75: うち、 直接効果 | Y75: 成果実績 | AB75: 円/t-CO2
Y76: 目標値 | AB76: 円/t-CO2
Y77: 達成度 | AB77: ％
A78: 横断的な施策に係る成果目標 及び成果実績 （アウトカム） | H78: 定量的な成果目標 | P78: 成果指標 | AB78: 単位 | AE78: 28年度 | AI78: 29年度 | AM78: 30年度 | AQ78: 中間目標 | AU78: 目標最終年度
AS79: 年度 | AW79: 年度
G80: 目標・指標 | Y80: 成果実績
Y81: 目標値
Y82: 達成度 | AB82: ％
A83: ●● | E83: 関係 | G83: 算出方法
A84: 成果目標及び成果実績（アウトカム）欄についてさらに記載が必要な場合はチェックの上【別紙１】に記載 | AO84: チェック
A85: 定量的な成果目標の設定が困難な場合 | B85: 定量的な目標が設定できない理由及び定性的な成果目標 | G85: 定量的な目標が設定できない理由 | AB85: 定性的な成果目標と28～30年度の達成状況・実績
B90: 事業の妥当性を検証するための代替的な達成目標及び実績 | G90: 代替目標 | P90: 代替指標 | AB90: 単位 | AE90: 28年度 | AI90: 29年度 | AM90: 30年度 | AQ90: 中間目標 | AU90: 目標最終年度
AS91: 年度 | AW91: 年度
Y92: 実績
Y93: 目標値
Y94: 達成度 | AB94: ％
B95: 事業の妥当性を検証するための代替的な達成目標及び実績 | G95: 代替目標 | P95: 代替指標 | AB95: 単位 | AE95: 28年度 | AI95: 29年度 | AM95: 30年度 | AQ95: 中間目標 | AU95: 目標最終年度
AS96: 年度 | AW96: 年度
Y97: 実績
Y98: 目標値
Y99: 達成度 | AB99: ％
B100: 事業の妥当性を検証するための代替的な達成目標及び実績 | G100: 代替目標 | P100: 代替指標 | AB100: 単位 | AE100: 28年度 | AI100: 29年度 | AM100: 30年度 | AQ100: 中間目標 | AU100: 目標最終年度
AS101: 年度 | AW101: 年度
Y102: 実績
Y103: 目標値
Y104: 達成度 | AB104: ％
A105: 活動指標及び 活動実績 （アウトプット） | G105: 活動指標 | AB105: 単位 | AE105: 28年度 | AI105: 29年度 | AM105: 30年度 | AQ105: 31年度 活動見込 | AU105: 32年度 活動見込
G106: 倫理制度説明会（倫理審査会事務局実施）受講者数 | Y106: 活動実績 | AB106: 人 | AE106: 525 | AI106: 490 | AM106: 539 | AQ106: -
Y107: 当初見込み | AB107: - | AE107: - | AI107: - | AM107: - | AQ107: -
A108: 活動指標及び 活動実績 （アウトプット） | G108: 活動指標 | AB108: 単位 | AE108: 28年度 | AI108: 29年度 | AM108: 30年度 | AQ108: 31年度 活動見込 | AU108: 32年度 活動見込
G109: 倫理研修（各府省実施）受講者数 | Y109: 活動実績 | AB109: 千人 | AE109: 459 | AI109: 451 | AM109: 500 | AQ109: -
Y110: 当初見込み | AB110: - | AE110: - | AI110: - | AM110: - | AQ110: -
A111: 活動指標及び 活動実績 （アウトプット） | G111: 活動指標 | AB111: 単位 | AE111: 28年度 | AI111: 29年度 | AM111: 30年度 | AQ111: 31年度 活動見込 | AU111: 32年度 活動見込
G112: 倫理審査会が主催した講演等への参加者数 | Y112: 活動実績 | AB112: 人 | AE112: 405 | AI112: 422 | AM112: 486 | AQ112: -
Y113: 当初見込み | AB113: - | AE113: - | AI113: - | AM113: - | AQ113: -
A114: 活動指標及び 活動実績 （アウトプット） | G114: 活動指標 | AB114: 単位 | AE114: 28年度 | AI114: 29年度 | AM114: 30年度 | AQ114: 31年度 活動見込 | AU114: 32年度 活動見込
G115: 調査開始事案件数 | Y115: 活動実績 | AB115: 件 | AE115: 11 | AI115: 19 | AM115: 18 | AQ115: -
Y116: 当初見込み | AB116: - | AE116: - | AI116: - | AM116: - | AQ116: -
A117: 活動指標及び 活動実績 （アウトプット） | G117: 活動指標 | AB117: 単位 | AE117: 28年度 | AI117: 29年度 | AM117: 30年度 | AQ117: 31年度 活動見込 | AU117: 32年度 活動見込
G118: 処分等件数 | Y118: 活動実績 | AB118: 件 | AE118: 13 | AI118: 18 | AM118: 16 | AQ118: -
Y119: 当初見込み | AB119: - | AE119: - | AI119: - | AM119: - | AQ119: -
A120: 単位当たり コスト | G120: 算出根拠 | AB120: 単位 | AE120: 28年度 | AI120: 29年度 | AM120: 30年度 | AQ120: 31年度活動見込
G121: 執行額／（説明会受講者数＋講演等参加者数） | Y121: 単位当たり コスト | AB121: 円 | AE121: 9677 | AI121: 10965 | AM121: 8780
Y122: 計算式 | AB122: 百万円/人 | AE122: 9/930 | AI122: 10/912 | AM122: 9/1025
A123: 単位当たり コスト | G123: 算出根拠 | AB123: 単位 | AE123: 28年度 | AI123: 29年度 | AM123: 30年度 | AQ123: 31年度活動見込
G124: ／ | Y124: 単位当たり コスト
Y125: 計算式 | AB125: /
A126: 単位当たり コスト | G126: 算出根拠 | AB126: 単位 | AE126: 28年度 | AI126: 29年度 | AM126: 30年度 | AQ126: 31年度活動見込
G127: ／ | Y127: 単位当たり コスト
Y128: 計算式 | AB128: /
A129: 単位当たり コスト | G129: 算出根拠 | AB129: 単位 | AE129: 28年度 | AI129: 29年度 | AM129: 30年度 | AQ129: 31年度活動見込
G130: ／ | Y130: 単位当たり コスト
Y131: 計算式 | AB131: /
A132: 単位当たり コスト | G132: 算出根拠 | AB132: 単位 | AE132: 28年度 | AI132: 29年度 | AM132: 30年度 | AQ132: 31年度活動見込
G133: ／ | Y133: 単位当たり コスト
Y134: 計算式 | AB134: /
A135: 政策評価、新経済・財政再生計画との関係 | C135: 政策評価 | E135: 政策
E136: 施策
E137: 測定指標 | G137: 定量的指標 | AB137: 単位 | AE137: 28年度 | AI137: 29年度 | AM137: 30年度 | AQ137: 中間目標 | AU137: 目標年度
AS138: 年度 | AW138: 年度
Y139: 実績値
Y140: 目標値
G141: 定量的指標 | AB141: 単位 | AE141: 28年度 | AI141: 29年度 | AM141: 30年度 | AQ141: 中間目標 | AU141: 目標年度
AS142: 年度 | AW142: 年度
Y143: 実績値
Y144: 目標値
G145: 定量的指標 | AB145: 単位 | AE145: 28年度 | AI145: 29年度 | AM145: 30年度 | AQ145: 中間目標 | AU145: 目標年度
AS146: 年度 | AW146: 年度
Y147: 実績値
Y148: 目標値
G149: 定量的指標 | AB149: 単位 | AE149: 28年度 | AI149: 29年度 | AM149: 30年度 | AQ149: 中間目標 | AU149: 目標年度
AS150: 年度 | AW150: 年度
Y151: 実績値
Y152: 目標値
G153: 定量的指標 | AB153: 単位 | AE153: 28年度 | AI153: 29年度 | AM153: 30年度 | AQ153: 中間目標 | AU153: 目標年度
AS154: 年度 | AW154: 年度
Y155: 実績値
Y156: 目標値
G157: 定性的指標 | Q157: 目標 | AB157: 目標年度 | AE157: 施策の進捗状況（目標）
AE161: 施策の進捗状況（実績）
G164: 定性的指標 | Q164: 目標 | AB164: 目標年度 | AE164: 施策の進捗状況（目標）
AE168: 施策の進捗状況（実績）
G171: 定性的指標 | Q171: 目標 | AB171: 目標年度 | AE171: 施策の進捗状況（目標）
AE175: 施策の進捗状況（実績）
G178: 定性的指標 | Q178: 目標 | AB178: 目標年度 | AE178: 施策の進捗状況（目標）
AE182: 施策の進捗状況（実績）
G185: 定性的指標 | Q185: 目標 | AB185: 目標年度 | AE185: 施策の進捗状況（目標）
AE189: 施策の進捗状況（実績）
E192: 本事業の成果と上位施策・測定指標との関係
E195: 政策
E196: 施策
E197: 測定指標 | G197: 定量的指標 | AB197: 単位 | AE197: 28年度 | AI197: 29年度 | AM197: 30年度 | AQ197: 中間目標 | AU197: 目標年度
AS198: 年度 | AW198: 年度
Y199: 実績値
Y200: 目標値
G201: 定量的指標 | AB201: 単位 | AE201: 28年度 | AI201: 29年度 | AM201: 30年度 | AQ201: 中間目標 | AU201: 目標年度
AS202: 年度 | AW202: 年度
Y203: 実績値
Y204: 目標値
G205: 定量的指標 | AB205: 単位 | AE205: 28年度 | AI205: 29年度 | AM205: 30年度 | AQ205: 中間目標 | AU205: 目標年度
AS206: 年度 | AW206: 年度
Y207: 実績値
Y208: 目標値
G209: 定量的指標 | AB209: 単位 | AE209: 28年度 | AI209: 29年度 | AM209: 30年度 | AQ209: 中間目標 | AU209: 目標年度
AS210: 年度 | AW210: 年度
Y211: 実績値
Y212: 目標値
G213: 定量的指標 | AB213: 単位 | AE213: 28年度 | AI213: 29年度 | AM213: 30年度 | AQ213: 中間目標 | AU213: 目標年度
AS214: 年度 | AW214: 年度
Y215: 実績値
Y216: 目標値
G217: 定性的指標 | Q217: 目標 | AB217: 目標年度 | AE217: 施策の進捗状況（目標）
AE221: 施策の進捗状況（実績）
G224: 定性的指標 | Q224: 目標 | AB224: 目標年度 | AE224: 施策の進捗状況（目標）
AE228: 施策の進捗状況（実績）
G231: 定性的指標 | Q231: 目標 | AB231: 目標年度 | AE231: 施策の進捗状況（目標）
AE235: 施策の進捗状況（実績）
G238: 定性的指標 | Q238: 目標 | AB238: 目標年度 | AE238: 施策の進捗状況（目標）
AE242: 施策の進捗状況（実績）
G245: 定性的指標 | Q245: 目標 | AB245: 目標年度 | AE245: 施策の進捗状況（目標）
AE249: 施策の進捗状況（実績）
E252: 本事業の成果と上位施策・測定指標との関係
E255: 政策
E256: 施策
E257: 測定指標 | G257: 定量的指標 | AB257: 単位 | AE257: 28年度 | AI257: 29年度 | AM257: 30年度 | AQ257: 中間目標 | AU257: 目標年度
AS258: 年度 | AW258: 年度
Y259: 実績値
Y260: 目標値
G261: 定量的指標 | AB261: 単位 | AE261: 28年度 | AI261: 29年度 | AM261: 30年度 | AQ261: 中間目標 | AU261: 目標年度
AS262: 年度 | AW262: 年度
Y263: 実績値
Y264: 目標値
G265: 定量的指標 | AB265: 単位 | AE265: 28年度 | AI265: 29年度 | AM265: 30年度 | AQ265: 中間目標 | AU265: 目標年度
... 628 more rows
